{"text_format":"3","workbook":"xlsx","n_sheets":1,"sheets":["古建班组招标清单"],"not_rendered":{"defined_names":1},"read":"whole","date_system":"1900"}

{"sheet":"古建班组招标清单","index":0,"n_rows":98,"n_cols":10,"rows_kept":98,"merged":[[0,0,0,9],[1,0,2,0],[1,1,2,1],[1,2,2,2],[1,3,2,3],[1,4,2,4],[1,5,1,6],[1,7,1,8],[1,9,2,9],[3,1,3,2],[24,1,24,2],[40,1,40,2],[58,1,58,2],[74,1,74,2],[82,1,82,2],[96,0,96,5],[97,0,97,9]]}
["2025年“A”项目廊亭修复劳务班组采购清单及报价表"]
["序号","项目名称","项目特征描述","计量\n单位","工程量","金额（元）",null,"金额（元）",null,"备注"]
[{"$nulls":5},"全费用单价限价","合价","班组所报全费用单价","合价"]
[""," 凌云公园连廊一",null,"","","",""]
[1,"满堂脚手架","1．搭设方式：综合 \n2．檐口高度：综合\n3.工程量计算规则：按脚手架搭设水平投影面积计算\n4.做法要求：满足设计及现行施工技术、质量验收规范要求","m2",35.15,20,{"$f":"F5*E5","v":{"v":703,"d":"703.00"}}]
[2,"屋面板拆除","1.构件名称：屋面板 \n2.拆除构件的厚度或规格尺寸：综合 \n3.拆除屋面板及附着物、建渣整理、建渣堆放、建渣运输、建渣外弃、周边成品保护等均包含在综合单价内，不再另计\n4.工程量计算规则：按实际拆除屋面板面积计算\n5.做法要求：满足设计及现行施工技术、质量验收规范要求","m2",39.41,24,{"$f":"F6*E6","v":945.84}]
[3,"望板拆换（原有材料不利旧）","1.构件名称：望板 \n2.拆除和更换构件的厚度或规格尺寸：详见施工图 \n3.拆除望板、更换为红柳桉防腐木望板、建渣整理、建渣堆放、建渣运输、建渣外弃、周边成品保护等均包含在综合单价内，不再另计\n4.工程量计算规则：按实际更换望板面积计算\n5.做法要求：满足设计及现行施工技术、质量验收规范要求","m2",29.41,130,{"v":3823.3,"d":"3823.30"}]
[4,"望板拆换（原有材料利旧）","1.构件名称：望板 \n2.拆除和更换构件的厚度或规格尺寸：详见施工图 \n3.拆除望板、原有望板利旧安装、建渣整理、建渣堆放、建渣运输、建渣外弃、周边成品保护等均包含在综合单价内，不再另计\n4.工程量计算规则：按实际更换望板面积计算\n5.做法要求：满足设计及现行施工技术、质量验收规范要求","m2",10,20,{"v":200,"d":"200.00"}]
[5,"50×100椽子拆换（原有材料不利旧）","1.构件名称：椽子 \n2.拆除和更换构件的厚度或规格尺寸：详见施工图 \n3.拆除椽子、更换为红柳桉防腐木椽子、建渣整理、建渣堆放、建渣运输、建渣外弃、周边成品保护等均包含在综合单价内，不再另计\n4.工程量计算规则：按实际更换椽子木材体积计算\n5.做法要求：满足设计及现行施工技术、质量验收规范要求","m",201.34,40,{"v":8053.6,"d":"8053.60"}]
[6,"50×100椽子拆换（原有材料利旧）","1.构件名称：椽子 \n2.拆除和更换构件的厚度或规格尺寸：详见施工图 \n3.拆除椽子、原有椽子利旧安装、建渣整理、建渣堆放、建渣运输、建渣外弃、周边成品保护等均包含在综合单价内，不再另计\n4.工程量计算规则：按实际更换椽子木材体积计算\n5.做法要求：满足设计及现行施工技术、质量验收规范要求","m",50,8,{"v":400,"d":"400.00"}]
[7,"封檐板拆换","1.构件名称：封檐板 \n2.拆除和更换构件的厚度或规格尺寸：详见施工图 \n3.拆除封檐板、更换为红柳桉防腐木封檐板、建渣整理、建渣堆放、建渣运输、建渣外弃、周边成品保护等均包含在综合单价内，不再另计\n4.工程量计算规则：按实际更换封檐板长度计算\n5.做法要求：满足设计及现行施工技术、质量验收规范要求","m",25.1,45,{"v":1129.5,"d":"1129.50"}]
[8,"木构件维修刷漆","1.基层处理方法：清除打磨原有漆面 \n2.腻子做法：刮腻子二遍 \n3.油漆品种、刷漆遍数：刷丙烯酸底漆2遍，面漆2遍\n4.建渣整理、建渣堆放、建渣运输、建渣外弃、周边成品保护等均包含在综合单价内，不再另计\n5.工程量计算规则：按油漆可视面面积计算\n6.做法要求：满足设计及现行施工技术、质量验收规范要求","m2",205.5,80,{"v":16440,"d":"16440.00"}]
[9,"立柱碳纤维加固","1.工程内容：碳纤维加固\n2.工程量计算规则：按立柱碳纤维加固面积计算\n3.做法要求：满足设计及现行施工技术、质量验收规范要求","m2",10,450,{"v":4500,"d":"4500.00"}]
[10,"屋面卷材防水及保护层","1.卷材品种、规格：自粘SBS防水层、厚1.5mm\n2.防水层作法：\n(1)1.5mm自粘SBS防水层\n(2)铺钢丝网\n3.防护材料种类:25mm厚1：2.5水泥砂浆\n4.做法要求：满足设计及现行施工技术、质量验收规范要求","m2",39.41,115,4532.15]
[11,"小青瓦屋面","1.屋面类型：小青瓦 \n2.瓦件规格尺寸：综合 \n3.坐浆配合比及强度等级：M5混合砂浆 \n4.板瓦铺砌一搭三，安装成品滴瓦\n5.做法要求：满足设计及现行施工技术、质量验收规范要求","m2",39.41,130,{"v":5123.3,"d":"5123.30"}]
[12,"檐口滴水","1.类型：成品滴水\n2.瓦件规格尺寸：综合 \n3.坐浆配合比及强度等级：M5混合砂浆 \n4.做法要求：满足设计及现行施工技术、质量验收规范要求","m",21.3,40,{"v":852,"d":"852.00"}]
[13,"瓦脊制安","1.类型：成品瓦脊\n2.瓦件规格尺寸：综合 \n3.坐浆配合比及强度等级：M5混合砂浆 \n4.做法要求：满足设计及现行施工技术、质量验收规范要求","m",10.65,130,{"v":1384.5,"d":"1384.50"}]
[14,"木靠椅拆换","1.构件名称：木靠椅\n2.拆除和更换构件的厚度或规格尺寸：详见施工图 \n3.拆除木靠椅、更换为红柳桉防腐木靠椅、建渣整理、建渣堆放、建渣运输、建渣外弃、周边成品保护等均包含在综合单价内，不再另计\n4.工程量计算规则：按实际更换木靠椅长度计算\n5.做法要求：满足设计及现行施工技术、质量验收规范要求 ","m",18.5,950,{"v":17575,"d":"17575.00"}]
[15,"方柱更换","1.构件名称：方柱\n2.拆除和更换构件的厚度或规格尺寸：详见施工图 \n3.拆除方柱、更换为红柳桉防腐木方柱、建渣整理、建渣堆放、建渣运输、建渣外弃、周边成品保护等均包含在综合单价内，不再另计\n4.工程量计算规则：按实际更换方柱木材体积计算\n5.做法要求：满足设计及现行施工技术、质量验收规范要求","m3",0.39,7500,{"v":2925,"d":"2925.00"}]
[16,"拆除柱脚花岗石","1.拆除饰面材料种类：花岗石 \n2.拆除厚度或规格尺寸：详见施工图 \n3.建渣整理、建渣堆放、建渣运输、建渣外弃、周边成品保护等均包含在综合单价内，不再另计\n4.工程量计算规则：按实际拆除花岗石面积计算\n5.做法要求：满足设计及现行施工技术、质量验收规范要求","m2",2.88,20,{"v":57.6,"d":"57.60"}]
[17,"磉墩","1.石材种类、构件规格：青石 400×400×400 \n2.木柱埋入柱脚不低于10cm\n3.做法要求：满足设计及现行施工技术、质量验收规范要求","只",8,560,{"v":4480,"d":"4480.00"}]
[18,"木构架安装起重脚手架","1．搭设方式：综合 \n2．高度：综合\n3.工程量计算规则：按脚手架搭设水平投影面积计算\n4.做法要求：满足设计及现行施工技术、质量验收规范要求","m2",35.15,130,{"v":4569.5,"d":"4569.50"}]
[19,"匾额","1.外形尺寸、板厚度：1500×800×50牌匾 \n2.表面刷黑色油漆，字体内容现场拓印，重新还原 ","块",1,800,{"v":800,"d":"800.00"}]
[20,"楹联","1.外形尺寸、板厚度：1800×180×30柱子牌匾 \n2.表面刷黑色油漆，字体内容现场拓印，重新还原 ","块",2,400,{"v":800,"d":"800.00"}]
[""," 凌云公园连廊二",null,"","",""]
[21,"满堂脚手架","1．搭设方式：综合 \n2．檐口高度：综合\n3.工程量计算规则：按脚手架搭设水平投影面积计算\n4.做法要求：满足设计及现行施工技术、质量验收规范要求","m2",62.7,20,{"$f":"F26*E26","v":{"v":1254,"d":"1254.00"}}]
[22,"拆除小青瓦","1.瓦品种、规格：小青瓦 \n2.拆除小青瓦、建渣整理、建渣堆放、建渣运输、建渣外弃、周边成品保护等均包含在综合单价内，不再另计\n3.工程量计算规则：按连廊屋面面积计算\n4.做法要求：满足设计及现行施工技术、质量验收规范要求","m2",70.3,8,{"v":562.4,"d":"562.40"}]
[23,"50×100椽子拆换（原有材料不利旧）","1.构件名称：椽子 \n2.拆除和更换构件的厚度或规格尺寸：详见施工图 \n3.拆除椽子、更换为红柳桉防腐木椽子、建渣整理、建渣堆放、建渣运输、建渣外弃、周边成品保护等均包含在综合单价内，不再另计\n4.工程量计算规则：按实际更换椽子木材体积计算\n5.做法要求：满足设计及现行施工技术、质量验收规范要求","m",796,40,{"v":31840,"d":"31840.00"}]
[24,"50×100椽子拆换（原有材料利旧）","1.构件名称：椽子 \n2.拆除和更换构件的厚度或规格尺寸：详见施工图 \n3.拆除椽子、原有椽子利旧安装、建渣整理、建渣堆放、建渣运输、建渣外弃、周边成品保护等均包含在综合单价内，不再另计\n4.工程量计算规则：按实际更换椽子木材体积计算\n5.做法要求：满足设计及现行施工技术、质量验收规范要求","m",100,8,{"v":800,"d":"800.00"}]
[25,"封檐板拆换","1.构件名称：封檐板 \n2.拆除和更换构件的厚度或规格尺寸：详见施工图 \n3.拆除封檐板、更换为红柳桉防腐木封檐板、建渣整理、建渣堆放、建渣运输、建渣外弃、周边成品保护等均包含在综合单价内，不再另计\n4.工程量计算规则：按实际更换封檐板长度计算\n5.做法要求：满足设计及现行施工技术、质量验收规范要求","m",41.8,45,{"v":1881,"d":"1881.00"}]
[26,"木构件维修刷漆","1.基层处理方法：清除打磨原有漆面 \n2.腻子做法：刮腻子二遍 \n3.油漆品种、刷漆遍数：刷丙烯酸底漆2遍，面漆2遍\n4.建渣整理、建渣堆放、建渣运输、建渣外弃、周边成品保护等均包含在综合单价内，不再另计\n5.工程量计算规则：按油漆可视面面积计算\n6.做法要求：满足设计及现行施工技术、质量验收规范要求","m2",216.5,80,{"v":17320,"d":"17320.00"}]
[27,"屋面卷材防水及保护层","1.卷材品种、规格：自粘SBS防水层、厚1.5mm\n2.防水层作法：\n(1)1.5mm自粘SBS防水层\n(2)铺钢丝网\n3.防护材料种类:25mm厚1：2.5水泥砂浆\n4.做法要求：满足设计及现行施工技术、质量验收规范要求","m2",216.5,115,{"v":24897.5,"d":"24897.50"}]
[28,"小青瓦屋面","1.屋面类型：小青瓦 \n2.瓦件规格尺寸：综合 \n3.坐浆配合比及强度等级：M5混合砂浆 \n4.板瓦铺砌一搭三，安装成品滴瓦\n5.做法要求：满足设计及现行施工技术、质量验收规范要求","m2",70.3,130,{"v":9139,"d":"9139.00"}]
[29,"檐口滴水","1.类型：成品滴水\n2.瓦件规格尺寸：综合 \n3.坐浆配合比及强度等级：M5混合砂浆 \n4.做法要求：满足设计及现行施工技术、质量验收规范要求","m",38,40,{"v":1520,"d":"1520.00"}]
[30,"瓦脊制安","1.类型：成品瓦脊\n2.瓦件规格尺寸：综合 \n3.坐浆配合比及强度等级：M5混合砂浆 \n4.做法要求：满足设计及现行施工技术、质量验收规范要求","m",19,130,{"v":2470,"d":"2470.00"}]
[31,"木靠椅拆换","1.构件名称：木靠椅\n2.拆除和更换构件的厚度或规格尺寸：详见施工图 \n3.拆除木靠椅、更换为红柳桉防腐木靠椅、建渣整理、建渣堆放、建渣运输、建渣外弃、周边成品保护等均包含在综合单价内，不再另计\n4.工程量计算规则：按实际更换木靠椅长度计算\n5.做法要求：满足设计及现行施工技术、质量验收规范要求 ","m",29.84,950,{"v":28348,"d":"28348.00"}]
[32,"方柱更换","1.构件名称：方柱\n2.拆除和更换构件的厚度或规格尺寸：详见施工图 \n3.拆除方柱、更换为红柳桉防腐木方柱、建渣整理、建渣堆放、建渣运输、建渣外弃、周边成品保护等均包含在综合单价内，不再另计\n4.工程量计算规则：按实际更换方柱木材体积计算\n5.做法要求：满足设计及现行施工技术、质量验收规范要求","m3",0.48,7500,{"v":3600,"d":"3600.00"}]
[33,"拆除柱脚花岗石","1.拆除饰面材料种类：花岗石 \n2.拆除厚度或规格尺寸：详见施工图 \n3.建渣整理、建渣堆放、建渣运输、建渣外弃、周边成品保护等均包含在综合单价内，不再另计\n4.工程量计算规则：按实际拆除花岗石面积计算\n5.做法要求：满足设计及现行施工技术、质量验收规范要求","m2",3.6,20,{"v":72,"d":"72.00"}]
[34,"磉墩","1.石材种类、构件规格：青石 400×400×400 \n2.木柱埋入柱脚不低于10cm\n3.做法要求：满足设计及现行施工技术、质量验收规范要求","只",10,560,{"v":5600,"d":"5600.00"}]
[35,"木构架安装起重脚手架","1．搭设方式：综合 \n2．高度：综合\n3.工程量计算规则：按脚手架搭设水平投影面积计算\n4.做法要求：满足设计及现行施工技术、质量验收规范要求","m2",62.7,130,{"v":8151,"d":"8151.00"}]
[""," 凌云公园四方亭",null,"","",""]
[36,"满堂脚手架","1．搭设方式：综合 \n2．檐口高度：综合\n3.工程量计算规则：按脚手架搭设水平投影面积计算\n4.做法要求：满足设计及现行施工技术、质量验收规范要求","m2",23.43,20,{"$f":"F42*E42","v":{"v":468.6,"d":"468.60"}}]
[37,"50×100椽子拆换（原有材料不利旧）","1.构件名称：椽子 \n2.拆除和更换构件的厚度或规格尺寸：详见施工图 \n3.拆除椽子、更换为红柳桉防腐木椽子、建渣整理、建渣堆放、建渣运输、建渣外弃、周边成品保护等均包含在综合单价内，不再另计\n4.工程量计算规则：按实际更换椽子木材体积计算\n5.做法要求：满足设计及现行施工技术、质量验收规范要求","m",126.28,40,{"$f":"F43*E43","v":{"v":5051.2,"d":"5051.20"}}]
[38,"50×100椽子拆换（原有材料利旧）","1.构件名称：椽子 \n2.拆除和更换构件的厚度或规格尺寸：详见施工图 \n3.拆除椽子、原有椽子利旧安装、建渣整理、建渣堆放、建渣运输、建渣外弃、周边成品保护等均包含在综合单价内，不再另计\n4.工程量计算规则：按实际更换椽子木材体积计算\n5.做法要求：满足设计及现行施工技术、质量验收规范要求","m",50,8,{"$f":"F44*E44","v":{"v":400,"d":"400.00"}}]
[39,"封檐板拆换","1.构件名称：封檐板 \n2.拆除和更换构件的厚度或规格尺寸：详见施工图 \n3.拆除封檐板、更换为红柳桉防腐木封檐板、建渣整理、建渣堆放、建渣运输、建渣外弃、周边成品保护等均包含在综合单价内，不再另计\n4.工程量计算规则：按实际更换封檐板长度计算\n5.做法要求：满足设计及现行施工技术、质量验收规范要求","m",19.4,45,{"v":873,"d":"873.00"}]
[40,"木构件维修刷漆","1.基层处理方法：清除打磨原有漆面 \n2.腻子做法：刮腻子二遍 \n3.油漆品种、刷漆遍数：刷丙烯酸底漆2遍，面漆2遍\n4.建渣整理、建渣堆放、建渣运输、建渣外弃、周边成品保护等均包含在综合单价内，不再另计\n5.工程量计算规则：按油漆可视面面积计算\n6.做法要求：满足设计及现行施工技术、质量验收规范要求","m2",65,80,{"v":5200,"d":"5200.00"}]
[41,"屋面卷材防水及保护层","1.卷材品种、规格：自粘SBS防水层、厚1.5mm\n2.防水层作法：\n(1)1.5mm自粘SBS防水层\n(2)铺钢丝网\n3.防护材料种类:25mm厚1：2.5水泥砂浆\n4.做法要求：满足设计及现行施工技术、质量验收规范要求","m2",27.64,115,{"v":3178.6,"d":"3178.60"}]
[42,"小青瓦屋面","1.屋面类型：小青瓦 \n2.瓦件规格尺寸：综合 \n3.坐浆配合比及强度等级：M5混合砂浆 \n4.板瓦铺砌一搭三，安装成品滴瓦\n5.做法要求：满足设计及现行施工技术、质量验收规范要求","m2",27.64,130,{"v":3593.2,"d":"3593.20"}]
[43,"檐口滴水","1.类型：成品滴水\n2.瓦件规格尺寸：综合 \n3.坐浆配合比及强度等级：M5混合砂浆 \n4.做法要求：满足设计及现行施工技术、质量验收规范要求","m",19.4,40,{"v":776,"d":"776.00"}]
[44,"瓦脊制安","1.类型：成品瓦脊\n2.瓦件规格尺寸：综合 \n3.坐浆配合比及强度等级：M5混合砂浆 \n4.做法要求：满足设计及现行施工技术、质量验收规范要求","m",27.4,130,{"v":3562,"d":"3562.00"}]
[45,"宝顶（中堆、天五座）","1.类型：宝顶 \n2.规格尺寸：高820mm \n3.做法要求：满足设计及现行施工技术、质量验收规范要求 ","座",1,837.49,{"$f":"F51*E51","v":837.49}]
[46,"吻（兽）","1.类型：吻（兽） \n2.规格尺寸：详见施工图 \n3.做法要求：满足设计及现行施工技术、质量验收规范要求 ","只",4,236.05,{"v":944.2,"d":"944.20"}]
[47,"木靠椅拆换","1.构件名称：木靠椅\n2.拆除和更换构件的厚度或规格尺寸：详见施工图 \n3.拆除木靠椅、更换为红柳桉防腐木靠椅、建渣整理、建渣堆放、建渣运输、建渣外弃、周边成品保护等均包含在综合单价内，不再另计\n4.工程量计算规则：按实际更换木靠椅长度计算\n5.做法要求：满足设计及现行施工技术、质量验收规范要求 ","m",6.8,950,{"v":6460,"d":"6460.00"}]
[48,"方柱更换","1.构件名称：方柱\n2.拆除和更换构件的厚度或规格尺寸：详见施工图 \n3.拆除方柱、更换为红柳桉防腐木方柱、建渣整理、建渣堆放、建渣运输、建渣外弃、周边成品保护等均包含在综合单价内，不再另计\n4.工程量计算规则：按实际更换方柱木材体积计算\n5.做法要求：满足设计及现行施工技术、质量验收规范要求","m3",0.19,7500,{"v":1425,"d":"1425.00"}]
[49,"磉墩","1.石材种类、构件规格：青石 400×400×400 \n2.木柱埋入柱脚不低于10cm\n3.做法要求：满足设计及现行施工技术、质量验收规范要求","只",4,560,{"v":2240,"d":"2240.00"}]
[50,"木构架安装起重脚手架","1．搭设方式：综合 \n2．高度：综合\n3.工程量计算规则：按脚手架搭设水平投影面积计算\n4.做法要求：满足设计及现行施工技术、质量验收规范要求","m2",23.43,130,{"v":3045.9,"d":"3045.90"}]
[51,"匾额","1.外形尺寸、板厚度：1500×800×50牌匾 \n2.表面刷黑色油漆，字体内容现场拓印，重新还原 ","块",1,800,{"v":800,"d":"800.00"}]
[52,"楹联","1.外形尺寸、板厚度：1800×180×30柱子牌匾 \n2.表面刷黑色油漆，字体内容现场拓印，重新还原","块",2,400,{"v":800,"d":"800.00"}]
["","凌云公园茅草亭(A、B、C)",null,"","",""]
[53,"脚手架","1．搭设方式：综合 \n2．檐口高度：综合\n3.工程量计算规则：按脚手架搭设水平投影面积计算\n4.做法要求：满足设计及现行施工技术、质量验收规范要求","m2",206.08,20,{"$f":"F60*E60","v":{"v":4121.6,"d":"4121.60"}}]
[54,"茅草屋面茅草拆除","1.构件名称：茅草屋面茅草 \n2.拆除构件的厚度或规格尺寸：综合 \n3.拆除茅草屋面茅草及附着物、建渣整理、建渣堆放、建渣运输、建渣外弃、周边成品保护等均包含在综合单价内，不再另计\n4.工程量计算规则：按实际拆除茅草屋面茅草面积计算\n5.做法要求：满足设计及现行施工技术、质量验收规范要求","m2",253.35,8,{"v":2026.8,"d":"2026.80"}]
[55,"望板拆换（原有材料不利旧）","1.构件名称：望板 \n2.拆除和更换构件的厚度或规格尺寸：详见施工图 \n3.拆除望板、更换为红柳桉防腐木望板、建渣整理、建渣堆放、建渣运输、建渣外弃、周边成品保护等均包含在综合单价内，不再另计\n4.工程量计算规则：按实际更换望板面积计算\n5.做法要求：满足设计及现行施工技术、质量验收规范要求","m2",203.35,130,{"v":26435.5,"d":"26435.50"}]
[56,"望板拆换（原有材料利旧）","1.构件名称：望板 \n2.拆除和更换构件的厚度或规格尺寸：详见施工图 \n3.拆除望板、原有望板利旧安装、建渣整理、建渣堆放、建渣运输、建渣外弃、周边成品保护等均包含在综合单价内，不再另计\n4.工程量计算规则：按实际更换望板面积计算\n5.做法要求：满足设计及现行施工技术、质量验收规范要求","m2",50,20,{"v":1000,"d":"1000.00"}]
[57,"60×80椽子拆换（原有材料不利旧）","1.构件名称：椽子 \n2.拆除和更换构件的厚度或规格尺寸：详见施工图 \n3.拆除椽子、更换为红柳桉防腐木椽子、建渣整理、建渣堆放、建渣运输、建渣外弃、周边成品保护等均包含在综合单价内，不再另计\n4.工程量计算规则：按实际更换椽子木材体积计算\n5.做法要求：满足设计及现行施工技术、质量验收规范要求","m",298.3,38,{"v":11335.4,"d":"11335.40"}]
[58,"60×80椽子拆换（原有材料利旧）","1.构件名称：椽子 \n2.拆除和更换构件的厚度或规格尺寸：详见施工图 \n3.拆除椽子、原有椽子利旧安装、建渣整理、建渣堆放、建渣运输、建渣外弃、周边成品保护等均包含在综合单价内，不再另计\n4.工程量计算规则：按实际更换椽子木材体积计算\n5.做法要求：满足设计及现行施工技术、质量验收规范要求","m",200,10,{"v":2000,"d":"2000.00"}]
[59,"封檐板拆换","1.构件名称：封檐板 \n2.拆除和更换构件的厚度或规格尺寸：详见施工图 \n3.拆除封檐板、更换为红柳桉防腐木封檐板、建渣整理、建渣堆放、建渣运输、建渣外弃、周边成品保护等均包含在综合单价内，不再另计\n4.工程量计算规则：按实际更换封檐板长度计算\n5.做法要求：满足设计及现行施工技术、质量验收规范要求","m",125,45,{"v":5625,"d":"5625.00"}]
[60,"木构件（椽子、望板、封檐板、木坐凳）维修刷漆","1.基层处理方法：清除打磨原有漆面 \n2.腻子做法：刮腻子二遍 \n3.油漆品种、刷漆遍数：油性透明封固底漆一遍，刷丙烯酸底漆2遍，刷木清漆1遍\n4.建渣整理、建渣堆放、建渣运输、建渣外弃、周边成品保护等均包含在综合单价内，不再另计\n5.工程量计算规则：按油漆可视面面积计算\n6.做法要求：满足设计及现行施工技术、质量验收规范要求","m2",517,80,{"v":41360,"d":"41360.00"}]
[61,"圆木维修刷漆","1.基层处理方法：清除打磨原有漆面 \n2.油漆品种、刷漆遍数：油性透明封固底漆一遍，刷丙烯酸底漆2遍，刷木清漆1遍\n3.建渣整理、建渣堆放、建渣运输、建渣外弃、周边成品保护等均包含在综合单价内，不再另计\n4.工程量计算规则：按油漆可视面面积计算\n5.做法要求：满足设计及现行施工技术、质量验收规范要求","m2",120,60,{"v":7200,"d":"7200.00"}]
[62,"屋面卷材防水及保护层","1.卷材品种、规格：自粘SBS防水层、厚1.5mm\n2.防水层作法：\n(1)1.5mm自粘SBS防水层\n(2)铺钢丝网\n3.防护材料种类:25mm厚1：2.5水泥砂浆\n4.做法要求：满足设计及现行施工技术、质量验收规范要求","m2",253.35,115,29135.25]
[63,"小青瓦屋面","1.屋面类型：小青瓦 \n2.瓦件规格尺寸：综合 \n3.坐浆配合比及强度等级：M5混合砂浆 \n4.板瓦铺砌一搭三，安装成品滴瓦\n5.做法要求：满足设计及现行施工技术、质量验收规范要求","m2",253.35,130,{"v":32935.5,"d":"32935.50"}]
[64,"檐口滴水","1.类型：成品滴水\n2.瓦件规格尺寸：综合 \n3.坐浆配合比及强度等级：M5混合砂浆 \n4.做法要求：满足设计及现行施工技术、质量验收规范要求","m",89.6,40,{"v":3584,"d":"3584.00"}]
[65,"瓦脊制安","1.类型：成品瓦脊\n2.瓦件规格尺寸：综合 \n3.坐浆配合比及强度等级：M5混合砂浆 \n4.做法要求：满足设计及现行施工技术、质量验收规范要求","m",44.8,130,{"v":5824,"d":"5824.00"}]
[66,"匾额","1.外形尺寸、板厚度：1200×800×50牌匾 \n2.表面刷黑色油漆，字体内容，样式由业主提供 ","块",3,800,{"v":2400,"d":"2400.00"}]
[67,"楹联","1.外形尺寸、板厚度：1800×180×30柱子牌匾 \n2.表面刷黑色油漆，字体内容，样式由业主提供 ","块",6,400,{"v":2400,"d":"2400.00"}]
["","紫阳大道四方亭及候车亭",null,"","",""]
[68,"双排脚手架","1．搭设方式：综合 \n2．檐口高度：综合\n3.工程量计算规则：按脚手架搭设垂直投影面积计算\n4.做法要求：满足设计及现行施工技术、质量验收规范要求","m2",119.07,24,{"$f":"F76*E76","v":2857.68}]
[69,"封檐板拆换","1.构件名称：封檐板 \n2.拆除和更换构件的厚度或规格尺寸：详见施工图 \n3.拆除封檐板、更换为红柳桉防腐木封檐板、建渣整理、建渣堆放、建渣运输、建渣外弃、周边成品保护等均包含在综合单价内，不再另计\n4.工程量计算规则：按实际更换封檐板长度计算\n5.做法要求：满足设计及现行施工技术、质量验收规范要求","m",42.35,45,1905.75]
[70,"木构件维修刷漆","1.基层处理方法：清除打磨原有漆面 \n2.腻子做法：刮腻子二遍 \n3.油漆品种、刷漆遍数：油性透明封固底漆一遍，刷丙烯酸底漆2遍，刷猪肝色面漆2遍\n4.建渣整理、建渣堆放、建渣运输、建渣外弃、周边成品保护等均包含在综合单价内，不再另计\n5.工程量计算规则：按油漆可视面面积计算\n6.做法要求：满足设计及现行施工技术、质量验收规范要求","m2",75.6,60,{"v":4536,"d":"4536.00"}]
[71,"匾额","1.外形尺寸、板厚度：1500×800×50牌匾 \n2.表面刷黑色油漆，字体内容现场拓印，重新还原 ","块",1,800,{"v":800,"d":"800.00"}]
[72,"楹联","1.外形尺寸、板厚度：1800×180×30柱子牌匾 \n2.表面刷黑色油漆，字体内容现场拓印，重新还原","块",2,400,{"v":800,"d":"800.00"}]
[73,"铲除涂料面","1.铲除部位名称：候车亭 \n2.铲除部位的截面尺寸：详见施工图\n3.建渣整理、建渣堆放、建渣运输、建渣外弃、周边成品保护等均包含在综合单价内，不再另计\n4.工程量计算规则：按铲除涂料面积计算\n5.做法要求：满足设计及现行施工技术、质量验收规范要求","m2",45.9,6,{"v":275.4,"d":"275.40"}]
[74,"抹灰面油漆","1.基层类型：墙面一般抹灰面\n2.腻子种类：成品腻子膏\n3.刮腻子要求：清理基层，修补，砂纸打磨；满刮腻子一遍，找补两遍\n4.油漆品种、刷漆遍数：刷白色外墙乳胶漆底漆一遍，面漆二遍，喷甲基硅醇钠憎水剂","m2",45.9,40,{"v":1836,"d":"1836.00"}]
[""," 麒麟广场廊架修复",null,"","",""]
[75,"玻璃雨棚拆除","1.构件名称：玻璃雨棚 \n2.拆除厚度或规格尺寸：6+PVB0.6+6厚钢化夹胶玻璃 \n3.建渣整理、建渣堆放、建渣运输、建渣外弃、周边成品保护等均包含在综合单价内，不再另计\n4.工程量计算规则：按实际拆除钢化夹胶玻璃面积计算\n5.做法要求：满足设计及现行施工技术、质量验收规范要求","m2",566.4,18,{"$f":"F84*E84","v":{"v":10195.2,"d":"10195.20"}}]
[76,"玻璃雨篷","1.基层类型：防腐木\n2.龙骨材料种类、规格、中距：防腐木（规格、间距详设计）\n3.玻璃材料品种、规格、品牌：6+PVB0.6+6厚钢化夹胶玻璃\n4.做法要求：满足设计及现行施工技术、质量验收规范要求","m2",566.4,500,{"v":283200,"d":"283200.00"}]
[77,"檩木拆除","1.构件名称：檩木 \n2.拆除构件的厚度或规格尺寸：详施工图 \n3.拆除檩木、建渣整理、建渣堆放、建渣运输、建渣外弃、周边成品保护等均包含在综合单价内，不再另计\n4.工程量计算规则：按实际拆除檩木长度计算\n5.做法要求：满足设计及现行施工技术、质量验收规范要求","m",2832,5,{"v":14160,"d":"14160.00"}]
[78,"木檩制安（旧材料利用）","1.构件长度:详施工图\n2.构件截面:综合\n3.木材种类:红柳桉防腐木（旧材料利用），综合单价含旧材料的清理、堆放、保管等费用。\n4.工程量计算规则：按实际安装檩木长度计算\n5.做法要求：满足设计及现行施工技术、质量验收规范要求","m",1888,2.3,{"v":4342.4,"d":"4342.40"}]
[79,"木檩制安","1.构件长度:详施工图\n2.构件截面:综合\n3.木材种类:红柳桉防腐木（新购）\n4.工程量计算规则：按实际安装檩木长度计算\n5.做法要求：满足设计及现行施工技术、质量验收规范要求","m",944,25,{"v":23600,"d":"23600.00"}]
[80,"栏杆、栏板拆除","1.栏杆、栏板拆除 \n2.栏杆、栏板种类：红柳桉防腐木\n3.拆除栏杆、栏板、建渣整理、建渣堆放、建渣运输、建渣外弃、周边成品保护等均包含在综合单价内，不再另计\n4.工程量计算规则：按实际拆除栏杆长度计算\n5.做法要求：满足设计及现行施工技术、质量验收规范要求","m",3304,4,{"v":13216,"d":"13216.00"}]
[81,"坐凳木方制安","1.构件长度:详施工图\n2.构件截面:综合\n3.木材种类:红柳桉防腐木（新购）\n4.工程量计算规则：按实际安装坐凳单根木方长度计算\n5.做法要求：满足设计及现行施工技术、质量验收规范要求","m",472,30,{"v":14160,"d":"14160.00"}]
[82,"靠背木方制安","1.构件长度:详施工图\n2.构件截面:综合\n3.木材种类:红柳桉防腐木（新购）\n4.工程量计算规则：按实际安装靠背单根木方长度计算\n5.做法要求：满足设计及现行施工技术、质量验收规范要求","m",472,30,{"v":14160,"d":"14160.00"}]
[83,"坐凳及靠背木方安装（旧料利用）","1.构件长度:详施工图\n2.构件截面:综合\n3.木材种类:红柳桉防腐木（旧材料利用），综合单价含旧材料的清理、堆放、保管等费用。\n4.工程量计算规则：按实际安装坐凳及靠背木方长度计算\n5.做法要求：满足设计及现行施工技术、质量验收规范要求","m",2360,5,{"v":11800,"d":"11800.00"}]
[84,"铲除木材面油漆","1.铲除部位名称：廊架木材 \n2.铲除部位的截面尺寸：详施工图","m2",1189.44,6,7136.64]
[85,"木结构刷漆","1.部位：廊架木构件\n2.木构件打磨去毛刺，刷清漆一遍，咖啡色木纹漆一遍\n3.做法要求：满足设计及现行施工技术、质量验收规范要求","m",6136,17,{"v":104312,"d":"104312.00"}]
[86,"金属面油漆","1.部位：廊架钢构件\n2.所有钢构件清洁及打磨除锈，刷红丹防锈漆二遍，喷深灰色氟碳漆\n3.做法要求：满足设计及现行施工技术、质量验收规范要求","m2",534.52,80,{"v":42761.6,"d":"42761.60"}]
[87,"满堂脚手架","1．搭设方式：综合 \n2．檐口高度：综合\n3.工程量计算规则：按脚手架搭设水平投影面积计算\n4.做法要求：满足设计及现行施工技术、质量验收规范要求","m2",566.4,20,{"v":11328,"d":"11328.00"}]
["合    计",{"$nulls":5},{"$f":"SUM(G5:G96)","v":{"v":1001170.1,"d":"1001170.10"}}]
["说明：\n1.工程量计算规则：除项目特征单独说明外，均按2020年《四川省建设工程工程量清单计价定额》相关规定执行。\n2.投标人根据施工图、施工工艺、工序及国家现行规范、自行踏勘现场后综合考虑进行报价，结算时单价不作调整;\n3.全费用综合单价包含人工费、所有材料费（含辅材和周转材料费）、机械设备费、工具器具费、临时设施及措施费、大型机械进出场及场内转运费、下车费、吊装费、规费、管理费、配合费、安全文明施工费、以及各种风险费、保险费、施工过程中办理的各种手续费、降水费、排水费、各种检测费、利润、税费等完成该工作所需的全部费用，结算时无论涨跌、工程量增减或其它任何风险因素，均不作调整。                                                                                                                            \n4.现场安全环保文明施工管理要求：（1）由公司统一发放印有“兴绿园林”字样和LOGO的安全帽和反光背心，班组按实名制领取，使用完后交回项目部，否则按采购费用扣款，其余参照合同附件中安全环保管理协议执行。（2）现场雾炮机由甲方提供，投标单位需安排人员管理使用，人工费、油费及管理费用综合考虑到投标报价中，不单独计取。（3）防尘网由甲方提供，投标单位安排人员进行覆盖、回收、现场转移等，人工费综合考虑到投标报价中，不单独计取。\n5.该综合单价已包括垃圾外运费用，承包人自行综合考虑。                            \n6.施工中用电由投标人采用发电机发电，所用临时配电箱、用电线路、开关箱、机具等所有材料、设备及安装费用含在综合单价中。        "]